bitfinex-derivatives/quotes_SOLF0:USTF0_20240830
["timestamp","ask_amount","ask_price","bid_price","bid_amount"]
[1725055997814,0.04990956,137.24,137.22,8.97]
[1725055998323,0.04990956,137.24,137.23,8.97]
[1725055998717,0.04990956,137.24,137.23,12.6137]
[1725055999726,3.6426,137.27,137.24,3.6432]
[1725055999928,3.6426,137.27,137.25,8.97]
[1725056000423,2.6332,137.31,137.26,8.97]
[1725056000824,0.05365405,137.3,137.27,0.0531995]
[1725056001326,3.6421,137.29,137.27,3.6956995]
[1725056002320,3.6421,137.29,137.27,0.0531995]
[1725056002923,3.6423,137.28,137.27,0.0531995]
[1725056003431,0.05365405,137.3,137.27,0.0531995]
[1725056004132,3.6421,137.29,137.27,0.0531995]
[1725056005135,8.97,137.37,137.28,8.97]
[1725056005331,1.3174,137.35,137.3,8.97]
[1725056005634,3.6409,137.34,137.3,8.97]
[1725056006029,0.05449414,137.33,137.31,0.05406878]
[1725056006225,0.05449414,137.33,137.31,3.69556878]
[1725056008932,8.97,137.38,137.31,3.69556878]
[1725056008933,8.97,137.51,137.37,55.0]
[1725056009140,2.6551,137.49,137.43,8.97]
[1725056009837,0.05056793,137.47,137.45,0.0499565]
[1725056010042,0.05056793,137.47,137.46,12.6074]
[1725056010227,0.05056793,137.47,137.46,3.6374]
[1725056010430,0.05056793,137.47,137.46,12.6074]
[1725056011130,0.05056793,137.47,137.46,3.6374]
[1725056011737,7.2622,137.71,137.46,21.97]
[1725056011933,8.97,137.58,137.46,16.6794485]
[1725056012130,3.6355,137.54,137.45,35.88]
[1725056012337,25.069,137.57,137.46,22.33]
[1725056012632,0.05350169,137.53,137.5,0.05291767]
[1725056012838,0.05350169,137.53,137.37,63.10088988]
[1725056013032,22.33,137.54,137.43,22.33]
[1725056013437,3.6357,137.53,137.43,22.33]
[1725056013941,0.05173866,137.49,137.47,0.05557217]
[1725056014244,0.05582089,137.49,137.47,0.05557217]
[1725056016637,0.05582089,137.49,137.41,22.33]
[1725056016829,3.6376,137.46,137.41,22.33]
[1725056017034,1.3611,137.49,137.43,3.6383]
[1725056017233,1.3611,137.49,137.41,22.33]
[1725056017538,0.0554896,137.46,137.44,0.05523443]
[1725056018144,101.99774297,138.24,137.44,0.05523443]
[1725056018145,10.8937,137.71,137.45,22.33]
[1725056018342,25.1321,137.6,137.49,22.33]
[1725056018550,30.21339976,137.6,137.49,22.33]
[1725056018845,3.6351,137.56,137.51,3.6362]
[1725056019144,0.05184966,137.55,137.51,3.6362]
[1725056019338,0.05184966,137.55,137.52,3.68318631]
[1725056020637,3.68704966,137.55,137.52,0.04738631]
[1725056022447,0.05184966,137.55,137.47,22.33]
[1725056022751,22.33,137.58,137.47,22.33]
[1725056023450,0.04962175,137.54,137.51,0.04821393]
[1725056023649,3.6359,137.53,137.49,3.6367]
[1725056023851,2.722,137.52,137.45,22.33]
[1725056024259,3.6365,137.51,137.47,3.637]
[1725056024657,0.04840697,137.5,137.48,0.05126021]
[1725056024853,3.68490697,137.5,137.48,0.05126021]
[1725056026648,10.8876,137.78,137.48,22.38126021]
[1725056026850,10.8876,137.78,137.54,22.33]
[1725056026851,2.6738,137.61,137.54,22.33]
[1725056027051,1.4055,137.6,137.54,22.33]
[1725056027257,7.34250736,137.59,137.54,22.33]
[1725056027785,0.053499,137.58,137.55,0.05325143]
[1725056028062,0.053499,137.58,137.55,3.68825143]
[1725056028769,0.053499,137.58,137.57,3.6346]
[1725056030154,0.053499,137.58,137.55,0.05325143]
[1725056032366,3.6348,137.57,137.55,0.05325143]
[1725056032570,18.1447,137.79,137.55,0.05325143]
[1725056032767,2.7599,137.64,137.56,22.33]
[1725056032966,4.9869,137.63,137.6,3.6338]
[1725056033663,5.03470942,137.63,137.6,3.6841049]
[1725056034467,1.40150942,137.63,137.61,3.6335]
[1725056034667,1.40150942,137.63,137.6,0.0503049]
[1725056035065,1.40150942,137.63,137.61,3.6336]
[1725056036176,1.40150942,137.63,137.6,0.0503049]
[1725056036377,1.3537,137.63,137.54,27.91]
[1725056036676,3.6335,137.62,137.58,3.6342]
[1725056036868,7.2592,137.77,137.6,27.91]
[1725056037073,11.353,137.77,137.65,27.91]
[1725056037278,11.353,137.77,137.63,27.91]
[1725056037279,27.91,137.76,137.63,27.91]
[1725056037463,3.6315,137.69,137.68,0.04588052]
[1725056037668,3.63771838,137.69,137.67,0.05541298]
[1725056037872,4.0938,137.68,137.67,0.04905384]
[1725056038264,7.7255,137.68,137.67,0.04905384]
[1725056039367,4.0938,137.68,137.6,27.91]
[1725056039570,4.0938,137.68,137.5,7.2728]
[1725056039571,4.0938,137.68,137.59,3.634]
[1725056039978,4.0938,137.68,137.58,27.91]
[1725056040172,4.0938,137.68,137.58,3.6342]
[1725056040366,4.0938,137.68,137.55,27.91]
[1725056040367,3.6331,137.63,137.62,0.04865959]
[1725056040569,27.91,137.66,137.53,27.91]
[1725056040769,27.91,137.64,137.53,27.91]
[1725056041271,27.91,137.64,137.54,3.6353]
[1725056041465,3.6341,137.59,137.58,0.04867352]
[1725056041669,0.0480983,137.6,137.51,27.91]
[1725056041976,3.6351,137.56,137.51,27.91]
[1725056042273,4.97132102,137.58,137.51,27.91]
[1725056042487,1.4217,137.58,137.51,27.91]
[1725056042772,3.68885038,137.56,137.53,0.05342492]
[1725056043080,3.68885038,137.56,137.53,27.96342492]
[1725056043081,0.05375038,137.56,137.53,27.96342492]
[1725056043871,0.05375038,137.56,137.54,3.6353]
[1725056044079,0.05375038,137.56,137.53,0.05342492]
[1725056045376,3.68865038,137.56,137.53,3.68902492]
[1725056045571,7.2632,137.69,137.55,27.91]
[1725056045879,7.2632,137.69,137.58,31.5442]
[1725056045880,3.9279,137.68,137.58,31.5442]
[1725056046266,31.8379,137.68,137.58,31.5442]
[1725056046769,3.6335,137.62,137.58,3.6342]
[1725056046967,3.6335,137.62,137.59,0.05207181]
[1725056047373,3.6335,137.62,137.59,3.68617181]
[1725056048385,3.6332,137.63,137.59,3.68617181]
[1725056048773,0.04840011,137.64,137.59,3.68617181]
[1725056049171,27.91,137.78,137.63,27.91]
[1725056049372,2.6307,137.76,137.63,27.91]
[1725056049572,3.6308,137.72,137.67,3.6318]
[1725056049975,3.6308,137.72,137.63,27.91]
[1725056050174,0.04929569,137.69,137.66,0.0477378]
[1725056050377,0.0480485,137.69,137.66,0.05111543]
[1725056050770,0.0480485,137.69,137.68,3.6317]
[1725056051884,1.3174,137.77,137.71,3.6309]
[1725056052178,27.91,137.87,137.72,27.91]
[1725056052382,14.56629099,137.9,137.7,27.91]
[1725056052383,30.6963,137.84,137.7,27.91]
[1725056052881,0.05557749,137.78,137.76,0.04952368]
[1725056053182,0.04657932,137.78,137.76,0.04952368]
[1725056054884,0.04657932,137.78,137.55,7.2703]
[1725056055076,27.91,137.77,137.63,27.91]
[1725056055288,32.52534407,137.77,137.65,27.91]
[1725056055480,32.52534407,137.77,137.66,3.6321]
[1725056055673,1.3058,137.76,137.66,3.6321]
[1725056055873,0.05415936,137.72,137.7,0.04990077]
[1725056056083,3.6311,137.71,137.7,0.04990077]
[1725056056585,3.6318,137.68,137.63,3.633]
[1725056056784,3.65739649,137.69,137.62,27.91]
[1725056056975,1.3455,137.68,137.62,27.91]
[1725056057179,3.6326,137.65,137.62,27.91]
[1725056057484,3.68637031,137.65,137.62,27.96013513]
[1725056058480,3.6331,137.63,137.62,0.05013513]
[1725056059482,3.6334,137.62,137.57,31.5445]
[1725056060280,1.3469,137.67,137.57,31.5445]
[1725056060281,3.6339,137.6,137.57,27.91]
[1725056060583,3.68440521,137.6,137.57,0.05412606]
[1725056061226,1.0,137.77,137.59,27.91]
[1725056061375,1.4267,137.71,137.65,27.91]
[1725056061883,3.6316,137.69,137.65,27.91]
[1725056062184,0.04582453,137.68,137.66,0.04850816]
[1725056062373,3.67772453,137.68,137.66,0.04850816]
[1725056063675,3.632,137.67,137.66,0.04850816]
[1725056063884,0.04582453,137.68,137.66,0.04850816]
[1725056064288,3.67772453,137.68,137.66,0.04850816]
[1725056064786,1.0,137.77,137.67,27.91]
[1725056065084,0.59537643,137.91,137.7,27.91]
[1725056065085,2.6171,137.8,137.7,27.91]
[1725056065491,3.6295,137.77,137.72,3.6307]
[1725056065782,2.6171,137.8,137.73,0.05196001]
[1725056065983,0.04598145,137.76,137.73,0.05196001]
[1725056066286,3.63,137.75,137.73,0.05196001]
[1725056068482,7.31429099,137.9,137.74,33.47]
[1725056068677,1.3563,137.88,137.74,33.47]
[1725056068881,33.47,137.87,137.74,33.47]
[1725056069078,33.47,137.87,137.75,3.6297]
[1725056069286,33.47,137.87,137.74,33.47]
[1725056069599,3.6285,137.81,137.79,0.0477861]
[1725056069793,3.60621006,137.81,137.79,0.0477861]
[1725056070185,0.05074013,137.82,137.79,0.0477861]
[1725056070491,3.6285,137.81,137.79,0.0477861]
[1725056070687,3.55431431,137.81,137.79,0.0477861]
[1725056070995,3.6286,137.8,137.79,0.0477861]
[1725056072093,0.05074013,137.82,137.79,0.0477861]
[1725056073190,0.05074013,137.82,137.79,3.6765861]
[1725056074193,0.05074013,137.82,137.79,0.0477861]
[1725056075790,3.6286,137.8,137.79,0.0477861]
[1725056075991,3.56571909,137.84,137.72,33.47]
[1725056076195,34.47,137.86,137.72,33.47]
[1725056076492,3.6293,137.78,137.74,3.63]
[1725056076699,3.69366427,137.79,137.72,33.47]
[1725056076918,33.47,137.83,137.7,3.71870237]
[1725056077190,33.47,137.83,137.62,7.2663]
[1725056077191,3.6299,137.75,137.74,0.05496206]
[1725056077502,3.6299,137.75,137.67,37.18543653]
[1725056077503,0.04596744,137.76,137.73,0.04814947]
[1725056077802,0.04596744,137.76,137.67,37.13898904]
[1725056077803,3.6306,137.73,137.69,3.6314]
[1725056077995,0.0514429,137.72,137.7,0.04596916]
[1725056078493,3.6821429,137.72,137.7,0.04596916]
[1725056078891,0.0514429,137.72,137.7,0.04596916]
[1725056079397,3.6821429,137.72,137.7,0.04596916]
[1725056079597,0.0514429,137.72,137.7,0.04596916]
[1725056079896,3.6309,137.71,137.7,0.04596916]
[1725056082394,3.6309,137.71,137.5,80.7437]
[1725056082395,3.6328,137.65,137.6,33.47]
[1725056082700,3.6328,137.65,137.61,3.6335]
[1725056083387,0.04726389,137.64,137.62,0.05318349]
[1725056083696,3.68487543,137.64,137.62,0.05318349]
[1725056084209,0.05197543,137.64,137.62,0.05318349]
[1725056085398,3.6331,137.63,137.62,0.05318349]
[1725056087389,3.634,137.6,137.56,37.1048]
[1725056088396,3.68763195,137.59,137.57,0.04923355]
[1725056088597,0.05343195,137.59,137.57,0.04923355]
[1725056089199,3.6344,137.58,137.57,0.04923355]
[1725056090098,0.05343195,137.59,137.57,0.04923355]
[1725056091305,3.6344,137.58,137.57,0.04923355]
[1725056093908,3.6349,137.57,137.54,27.92]
[1725056094315,0.05343195,137.59,137.51,31.5561]
[1725056094501,3.6354,137.55,137.51,31.5561]
[1725056094697,27.92,137.61,137.49,27.92]
[1725056095008,3.6352,137.55,137.54,0.0501955]
[1725056099634,7.2553366,137.55,137.54,0.0501955]
[1725056099806,3.6201366,137.55,137.47,27.92]
[1725056100118,1.3067,137.55,137.47,27.92]
[1725056100411,3.6368,137.49,137.47,27.92]
[1725056100935,3.6372,137.48,137.47,0.04942001]
[1725056101317,3.68377578,137.49,137.47,0.04942001]
[1725056102010,0.04677578,137.49,137.47,0.04942001]
[1725056103614,3.637,137.48,137.47,0.04942001]
[1725056104209,3.68367578,137.49,137.47,0.04942001]
[1725056104814,3.637,137.48,137.47,0.04942001]
[1725056108115,0.04677578,137.49,137.48,3.637]
[1725056108507,3.6359,137.53,137.5,3.6363]
[1725056109619,3.69097212,137.53,137.5,3.68980755]
[1725056109817,3.69097212,137.53,137.51,3.6362]
[1725056110616,3.636,137.52,137.5,3.68990755]
[1725056111607,3.69087212,137.53,137.5,3.68990755]
[1725056112210,3.69087212,137.53,137.51,3.6362]
[1725056113119,0.05507212,137.53,137.52,3.636]
[1725056121018,3.6348,137.57,137.52,3.636]
[1725056121229,1.327,137.6,137.53,27.92]
[1725056121522,5.0800406,137.62,137.53,27.92]
[1725056121719,3.634,137.6,137.57,3.6344]
[1725056122121,3.68903429,137.6,137.57,3.68772413]
[1725056123024,0.05503429,137.6,137.59,3.6341]
[1725056128020,3.68893429,137.6,137.58,3.6343]
[1725056128422,0.05503429,137.6,137.58,3.6343]
[1725056129924,0.05503429,137.6,137.59,3.6341]
[1725056130429,0.05503429,137.6,137.58,3.6343]
[1725056130621,0.05503429,137.6,137.57,0.05332413]
[1725056131623,3.6341,137.59,137.57,0.05332413]
[1725056131921,0.05503429,137.6,137.57,0.05332413]
[1725056132121,3.6343,137.59,137.57,0.05332413]
[1725056132520,0.05503429,137.6,137.57,0.05332413]
[1725056133425,3.6344,137.58,137.57,0.05332413]
[1725056135933,0.05503429,137.6,137.5,25.89039497]
[1725056136133,23.6404,137.62,137.5,22.34]
[1725056136334,3.6354,137.55,137.52,3.6358]
[1725056137030,3.6357,137.53,137.52,0.05168024]
[1725056139723,0.05051695,137.55,137.47,22.34]
[1725056140042,0.05051695,137.55,137.43,0.1467]
[1725056140043,2.7588,137.56,137.45,22.34]
[1725056140343,3.6364,137.51,137.47,3.6373]
[1725056140833,0.0553249,137.5,137.48,0.05265986]
[1725056143029,3.6918249,137.5,137.48,0.05265986]
[1725056143927,3.6368,137.49,137.48,0.05265986]
[1725056144223,7.20198813,137.49,137.48,0.05265986]
[1725056144428,6.25468813,137.49,137.41,22.34]
[1725056145134,28.59468813,137.49,137.39,22.34]
[1725056145437,0.0500897,137.45,137.39,22.34]
[1725056146327,0.0500897,137.45,137.37,22.34]
[1725056146527,0.05287056,137.42,137.37,22.34]
[1725056146735,3.639,137.41,137.38,3.6395]
[1725056146956,0.05287056,137.42,137.36,3.61609861]
[1725056147235,3.639,137.41,137.38,3.6396]
[1725056148134,3.639,137.41,137.37,3.6398]
[1725056148334,3.6393,137.4,137.37,3.6398]
[1725056149236,3.639,137.41,137.37,3.6398]
[1725056149635,3.66072494,137.42,137.36,3.6401]
[1725056149843,1.47001867,137.4,137.33,22.34]
[1725056150034,1.47001867,137.4,137.36,3.64]
[1725056150232,3.6395,137.39,137.36,3.64]
[1725056150640,5.18991613,137.4,137.35,3.6404]
[1725056150839,5.18991613,137.4,137.33,22.34]
[1725056151041,5.18991613,137.4,137.28,0.2532]
[1725056151042,5.18991613,137.4,137.31,22.34]
[1725056151344,3.68682536,137.37,137.34,3.6406]
[1725056151737,3.6402,137.36,137.34,3.6406]
[1725056151937,0.04672536,137.37,137.34,3.6406]
[1725056152237,3.68682536,137.37,137.34,3.6406]
[1725056155941,3.6402,137.36,137.34,3.6406]
[1725056156242,3.6402,137.36,137.33,3.641]
[1725056160544,0.04672536,137.37,137.31,22.34]
[1725056160748,0.04672536,137.37,137.33,22.34]
[1725056161339,0.04672536,137.37,137.35,3.6404]
[1725056163547,0.04672536,137.37,137.28,0.2532]
[1725056163747,0.04808443,137.34,137.29,22.34]
[1725056163951,0.04808443,137.34,137.33,3.6408]
[1725056164249,0.04808443,137.34,137.29,22.34]
[1725056164545,3.68888443,137.34,137.29,22.34]
[1725056164742,3.68888443,137.34,137.23,7.287]
[1725056164743,0.04808443,137.34,137.23,7.287]
[1725056164946,3.6414,137.32,137.29,3.6418]
[1725056165548,3.6414,137.32,137.3,3.6417]
[1725056165847,3.69020875,137.32,137.3,3.6417]
[1725056166250,0.04880875,137.32,137.3,3.6417]
[1725056167050,3.69010875,137.32,137.3,3.6417]
[1725056168353,0.04880875,137.32,137.21,0.0941]
[1725056168572,0.05287145,137.28,137.23,22.34]
[1725056168756,0.04722545,137.27,137.23,22.34]
[1725056168957,0.05541248,137.26,137.23,22.34]
[1725056169153,0.05323012,137.26,137.23,22.34]
[1725056170355,0.05323012,137.26,137.25,3.6431]
[1725056170749,0.05323012,137.26,137.24,3.6433]
[1725056172658,0.05323012,137.26,137.23,3.6435]
[1725056172853,0.05323012,137.26,137.22,22.34]
[1725056173357,3.69623012,137.26,137.23,3.6435]
[1725056174262,0.05323012,137.26,137.21,3.6439]
[1725056174453,0.05323012,137.26,137.17,3.85799032]
[1725056174793,1.3672,137.29,137.17,3.85799032]
[1725056174794,0.05069023,137.23,137.18,22.34]
[1725056174960,0.05069023,137.23,137.19,3.6446]
[1725056175457,3.6441,137.22,137.19,3.6446]
[1725056175848,3.68940507,137.23,137.16,22.34]
[1725056176061,3.6445,137.2,137.16,22.34]
[1725056176257,0.05269629,137.19,137.16,22.34]
[1725056177564,0.05269629,137.19,137.18,3.645]
[1725056181858,0.05269629,137.19,137.18,25.985]
[1725056185557,2.7289,137.27,137.18,22.34]
[1725056185957,1.2944,137.27,137.2,22.34]
[1725056186168,1.2944,137.27,137.22,22.34]
[1725056186369,5.0094,137.29,137.26,3.6427]
[1725056186561,5.0094,137.29,137.22,22.34]
[1725056186870,0.04773913,137.27,137.24,0.05545677]
[1725056187471,0.04773913,137.27,137.26,3.6429]
[1725056187662,0.04773913,137.27,137.24,0.05545677]
[1725056188470,0.04773913,137.27,137.26,3.6429]
[1725056192191,2.6129,137.36,137.26,25.9829]
[1725056192470,2.6129,137.36,137.3,22.34]
[1725056192866,6.2531,137.36,137.3,22.34]
[1725056193166,6.2531,137.36,137.33,3.6409]
[1725056193373,0.04757874,137.34,137.33,3.6409]
[1725056208239,0.04757874,137.34,137.32,0.05031475]
[1725056208489,7.25813511,137.33,137.32,0.05031475]
[1725056209490,3.641,137.33,137.32,0.05031475]
[1725056211387,7.2338008,137.33,137.32,0.05031475]
[1725056211886,3.6416,137.31,137.29,3.642]
[1725056212424,3.5928008,137.33,137.24,22.34]
[1725056212602,3.5928008,137.33,137.21,0.3003]
[1725056212603,22.34,137.32,137.22,22.34]
[1725056212988,3.6425,137.28,137.26,0.05414627]
[1725056213701,3.6425,137.28,137.26,3.69694627]
[1725056214519,3.6426,137.27,137.26,0.05414627]
[1725056215087,3.6433,137.25,137.22,3.6438]
[1725056215599,3.6432,137.25,137.22,3.6438]
[1725056215988,3.6037835,137.26,137.22,3.6438]
[1725056216188,0.04986903,137.25,137.22,3.6438]
[1725056216696,3.6434,137.24,137.22,3.6438]
[1725056217186,3.6434,137.24,137.2,22.34]
[1725056217386,3.6434,137.24,137.21,3.6441]
[1725056217988,3.6434,137.24,137.22,3.6439]
[1725056218297,0.04986903,137.25,137.2,22.34]
[1725056218491,0.04986903,137.25,137.22,22.34]
[1725056218794,0.04961925,137.25,137.24,3.6434]
[1725056219288,343.0,137.39,137.24,22.34]
[1725056219289,2.7305,137.32,137.24,22.34]
[1725056219894,3.6421,137.29,137.27,3.6426]
[1725056220297,3.69283999,137.29,137.27,3.69558122]
[1725056222102,0.05073999,137.29,137.28,3.6423]
[1725056225496,0.05073999,137.29,137.27,0.05298122]
[1725056226893,0.05073999,137.29,137.28,3.6423]
[1725056229806,0.05073999,137.29,137.27,3.69548122]
[1725056230507,0.05073999,137.29,137.28,3.6423]
[1725056234599,0.05073999,137.29,137.28,12.5923]
[1725056234799,83.88646263,137.35,137.3,3.6416]
[1725056235102,3.6412,137.33,137.31,8.95]
[1725056235400,83.88646263,137.35,137.31,8.95]
[1725056235606,3.6412,137.33,137.31,8.95]
[1725056235806,3.69554736,137.33,137.31,9.00305051]
[1725056236200,3.69554736,137.33,137.31,0.05305051]
[1725056236705,0.05434736,137.33,137.31,0.05305051]
[1725056237302,0.05434736,137.33,137.32,3.6413]
[1725056237501,0.05434736,137.33,137.31,0.05305051]
[1725056238099,0.05434736,137.33,137.31,3.69435051]
[1725056239208,0.05434736,137.33,137.32,3.6413]
[1725056243607,0.05434736,137.33,137.31,0.05305051]
[1725056244307,3.6413,137.32,137.31,0.05305051]
[1725056245311,3.70140248,137.33,137.26,22.36]
[1725056245708,3.6422,137.29,137.26,22.36]
[1725056246211,3.68882625,137.29,137.26,22.41169077]
[1725056246407,3.68882625,137.29,137.26,0.05169077]
[1725056246715,3.68882625,137.29,137.26,3.69439077]
[1725056249512,3.6424,137.28,137.26,3.69439077]
[1725056251214,0.04662625,137.29,137.27,3.6425]
[1725056258220,3.68872625,137.29,137.27,12.5925]
[1725056261029,3.68872625,137.29,137.26,0.05169077]
[1725056261223,0.04662625,137.29,137.26,0.05169077]
[1725056262325,3.6423,137.28,137.26,0.05169077]
[1725056264832,3.6426,137.27,137.26,0.05169077]
[1725056279562,0.04662625,137.29,137.26,0.05169077]
[1725056279743,0.04662625,137.29,137.27,8.95]
[1725056280649,0.04662625,137.29,137.27,12.5925]
[1725056289473,0.04662625,137.29,137.28,3.6423]
[1725056289666,0.04662625,137.29,137.28,12.5923]
[1725056289866,2.7478,137.35,137.28,8.95]
[1725056290067,2.7478,137.35,137.32,8.95]
[1725056290265,1.3269,137.39,137.33,8.95]
[1725056290869,3.69335757,137.37,137.35,0.04969669]
[1725056291072,0.05335757,137.37,137.35,0.04969669]
[1725056291497,3.69345757,137.37,137.35,0.04969669]
[1725056292863,3.6402,137.36,137.35,0.04969669]
[1725056293059,0.05335757,137.37,137.25,43.0862]
[1725056293256,10.2769,137.39,137.14,21.54284509]
[1725056293466,8.95,137.37,137.18,35.8]
[1725056293659,3.6406,137.35,137.3,8.95]
[1725056293968,1.3607,137.36,137.31,3.6414]
[1725056294159,0.05097333,137.35,137.32,0.04653942]
[1725056294870,8.95,137.35,137.28,12.5923]
[1725056295369,3.6418,137.31,137.28,12.5923]
[1725056295972,3.6418,137.3,137.28,8.95]
[1725056296274,0.05515081,137.31,137.26,8.95]
[1725056296572,0.05504079,137.3,137.26,8.95]
[1725056296763,3.6422,137.29,137.26,12.5927]
[1725056302075,0.05504079,137.3,137.2,60.27573361]
[1725056302272,0.04826028,137.26,137.23,8.95]
[1725056302578,3.69136028,137.26,137.23,8.95]
[1725056302772,0.04826028,137.26,137.23,12.5935]
[1725056304273,3.6431,137.25,137.23,12.5935]
[1725056304469,0.04826028,137.26,137.24,12.5934]
[1725056305275,3.69126028,137.26,137.24,12.5934]
[1725056306689,3.6432,137.25,137.23,3.6435]
[1725056306979,0.04826028,137.26,137.24,8.95]
[1725056307477,3.69126028,137.26,137.24,8.95]
[1725056309377,3.6431,137.25,137.24,8.95]
[1725056309772,3.6435,137.24,137.23,8.95]
[1725056312285,3.6437,137.23,137.21,3.6441]
[1725056312485,3.6437,137.23,137.21,12.5941]
[1725056313193,3.6441,137.22,137.12,7.2929]
[1725056313480,0.04826028,137.26,137.12,7.2929]
[1725056313481,0.05307924,137.18,137.13,0.31]
[1725056313683,3.67103825,137.22,137.18,8.95]
[1725056313878,3.69254975,137.21,137.18,12.5948]
[1725056314890,0.04824975,137.21,137.2,8.95]
[1725056315586,0.04824975,137.21,137.13,0.31]
[1725056315587,0.04824975,137.21,137.18,8.95]
[1725056316190,3.6446,137.2,137.18,8.95]
[1725056316889,3.6446,137.2,137.18,12.595]
[1725056317688,0.04824975,137.21,137.08,7.2949]
[1725056317986,0.0526505,137.17,137.15,8.95]
[1725056318186,0.0499237,137.17,137.15,12.5955]
[1725056318687,0.0499237,137.17,137.16,3.6455]
[1725056319488,0.0499237,137.17,137.15,8.95]
[1725056321191,0.0499237,137.17,137.16,3.6455]
[1725056323080,0.0499237,137.17,137.14,3.58901858]
[1725056323386,0.0499237,137.17,137.13,8.95]
[1725056323796,3.6953237,137.17,137.13,8.95]
[1725056324290,3.6953237,137.17,137.14,3.646]
[1725056324972,3.6456,137.16,137.14,3.646]
[1725056325087,0.0499237,137.17,137.13,3.6462]
[1725056325891,3.6459,137.15,137.13,3.6462]
[1725056326092,0.0499237,137.17,137.12,3.6465]
[1725056326396,8.9999237,137.17,137.12,3.6465]
[1725056326897,3.6462,137.14,137.12,3.6465]
[1725056327488,3.6459,137.15,137.12,3.6465]
[1725056327787,0.0499237,137.17,137.13,12.54444484]
[1725056327981,0.05054037,137.16,137.15,3.6458]
[1725056328182,0.04894023,137.17,137.14,8.95]
[1725056328693,0.04894023,137.17,137.16,3.6453]
[1725056329292,0.04894023,137.17,137.16,12.5953]
[1725056339099,2.731,137.25,137.22,3.6438]
[1725056339306,2.731,137.25,137.2,8.95]
[1725056339605,6.3742,137.25,137.2,8.95]
[1725056340200,0.0518327,137.24,137.21,0.04869391]
[1725056340504,0.0518327,137.24,137.23,3.6437]
[1725056341204,9.0018327,137.24,137.21,0.04869391]
[1725056343004,3.6439,137.22,137.21,0.04869391]
[1725056343202,12.57794946,137.22,137.12,7.2928]
[1725056343407,3.6447,137.19,137.17,3.6452]
[1725056343999,3.645,137.18,137.14,3.58313297]
[1725056344206,0.05034886,137.17,137.14,3.58313297]
[1725056344816,0.05034886,137.17,137.16,3.6454]
[1725056345005,0.05034886,137.17,137.16,7.25403829]
[1725056351813,0.05034886,137.17,137.16,3.6454]
[1725056358026,0.05034886,137.17,137.15,12.5956]
[1725056359830,378.8,137.34,137.18,3.6448]
[1725056360025,1.3288,137.24,137.18,8.95]
[1725056360326,1.3188,137.25,137.23,3.6437]
[1725056360521,3.61078378,137.27,137.22,8.95]
[1725056360821,0.04973162,137.26,137.23,0.05414359]
[1725056361127,3.69263162,137.26,137.23,3.69764359]
[1725056364031,3.69263162,137.26,137.24,3.6434]
[1725056366633,0.04973162,137.26,137.23,0.05414359]
[1725056368774,3.6433,137.25,137.23,0.05414359]
[1725056369247,3.6433,137.25,137.23,3.69774359]
[1725056379043,3.69273162,137.26,137.24,3.6434]
[1725056379438,0.04973162,137.26,137.24,3.6432]
[1725056379839,0.04973162,137.26,137.23,0.05414359]
[1725056380040,0.04973162,137.26,137.25,3.6431]
[1725056381643,85.37281772,137.36,137.29,3.6419]
[1725056381940,85.37281772,137.36,137.24,22.38]
[1725056381941,5.0217,137.34,137.28,26.08839149]
[1725056382144,5.0217,137.34,137.28,22.38]
[1725056382334,1.3808,137.34,137.31,3.6413]
[1725056382737,1.42817203,137.34,137.31,3.69144663]
[1725056383341,3.641,137.33,137.31,3.69144663]
[1725056383858,3.6413,137.32,137.31,0.05014663]
[1725056384240,1.42817203,137.34,137.31,0.05014663]
[1725056384476,3.641,137.33,137.31,0.05014663]
[1725056386947,1.42817203,137.34,137.32,3.6413]
[1725056387451,1.42817203,137.34,137.31,0.05014663]
[1725056387650,5.06907203,137.34,137.31,3.69154663]
[1725056388148,1.42817203,137.34,137.31,0.05014663]